fUST/lending_fUST_20240721
["ID","MTS","AMOUNT","RATE_DAILY","PERIOD"]
[332793858,1721529038818,-500.0,0.00013698,2]
[332793859,1721529038827,-500.0,0.00013698,2]
[332793860,1721529038837,-500.0,0.00013698,2]
[332793861,1721529038846,-572.65,0.00013698,2]
[332793862,1721529038857,-500.0,0.00013698,2]
[332793863,1721529038866,-500.0,0.00013698,2]
[332793864,1721529038875,-545.57359728,0.00013698,2]
[332793865,1721529038885,-505.41519491,0.00013698,2]
[332793866,1721529038894,-500.0,0.00013698,2]
[332793867,1721529038903,-500.0,0.00013698,2]
[332793868,1721529038912,-500.0,0.00013698,2]
[332793869,1721529038922,-509.85362598,0.00013698,2]
[332793870,1721529038932,-500.0,0.00013698,2]
[332793871,1721529038941,-500.0,0.00013698,2]
[332793872,1721529038954,-500.0,0.00013698,2]
[332793873,1721529038964,-501.29,0.00013698,2]
[332793874,1721529038973,-500.0,0.00013698,2]
[332793875,1721529038982,-500.0,0.00013698,2]
[332793876,1721529038993,-500.0,0.00013698,2]
[332793877,1721529039002,-500.0,0.00013698,2]
[332793878,1721529039013,-543.79927098,0.00013698,2]
[332793879,1721529039022,-500.0,0.00013698,2]
[332793880,1721529039033,-500.0,0.00013698,2]
[332793881,1721529039042,-503.73580191,0.00013698,2]
[332793882,1721529039051,-500.0,0.00013698,2]
[332793883,1721529039061,-500.0,0.00013698,2]
[332793884,1721529039071,-500.0,0.00013698,2]
[332793885,1721529039080,-506.67046312,0.00013698,2]
[332793886,1721529039090,-503.40087268,0.00013698,2]
[332793887,1721529039099,-500.0,0.00013698,2]
[332793888,1721529039108,-500.0,0.00013698,2]
[332793889,1721529039118,-500.0,0.00013698,2]
[332793890,1721529039127,-500.0,0.00013698,2]
[332793891,1721529039138,-500.0,0.00013698,2]
[332793892,1721529039147,-500.0,0.00013698,2]
[332793893,1721529039156,-500.0,0.00013698,2]
[332793894,1721529039166,-500.0,0.00013698,2]
[332793895,1721529039176,-746.29,0.00013698,2]
[332793896,1721529039186,-500.0,0.00013698,2]
[332793897,1721529039195,-277.30974389,0.00013698,2]
[332793898,1721529039204,-500.0,0.00013698,2]
[332793899,1721529039214,-500.0,0.00013698,2]
[332793900,1721529039223,-502.72088124,0.00013698,2]
[332793901,1721529039232,-1012.95674876,0.00013698,2]
[332793902,1721529039244,-485.26211001,0.00013698,2]
[332793903,1721529039254,-500.0,0.00013698,2]
[332793904,1721529039264,-500.0,0.00013698,2]
[332793905,1721529039274,-500.0,0.00013698,2]
[332793906,1721529039284,-502.47574919,0.00013698,2]
[332793907,1721529039294,-500.0,0.00013698,2]
[332793908,1721529039303,-580.21,0.00013698,2]
[332793909,1721529039313,-543.78739897,0.00013698,2]
[332793910,1721529039323,-500.0,0.00013698,2]
[332793911,1721529039332,-502.2429734,0.00013698,2]
[332793912,1721529039342,-500.0,0.00013698,2]
[332793913,1721529039351,-500.0,0.00013698,2]
[332793914,1721529039362,-500.0,0.00013698,2]
[332793915,1721529039371,-502.00450992,0.00013698,2]
[332793916,1721529039381,-195.08991549,0.00013698,2]
[332793917,1721529039391,-503.5797547,0.00013698,2]
[332793918,1721529039400,-500.0,0.00013698,2]
[332793919,1721529039410,-500.0,0.00013698,2]
[332793920,1721529039419,-500.0,0.00013698,2]
[332793921,1721529039431,-500.0,0.00013698,2]
[332793922,1721529039441,-273.53253815,0.00013698,2]
[332793923,1721529039451,-500.0,0.00013698,2]
[332793924,1721529039461,-488.60007628,0.00013698,2]
[332793925,1721529039470,-1018.3,0.00013698,2]
[332793926,1721529039480,-635.20312292,0.00013698,2]
[332793927,1721529039490,-500.0,0.00013698,2]
[332793928,1721529039500,-513.7,0.00013698,2]
[332793929,1721529039509,-500.0,0.00013698,2]
[332793930,1721529039519,-759.03,0.00013698,2]
[332793931,1721529039529,-500.0,0.00013698,2]
[332793932,1721529039539,-506.405325,0.00013698,2]
[332793933,1721529039548,-500.9166556,0.00013698,2]
[332793934,1721529039558,-500.7971441,0.00013698,2]
[332793935,1721529039568,-500.0,0.00013698,2]
[332793936,1721529039578,-259.81166719,0.00013698,2]
[332793937,1721529039587,-500.0,0.00013698,2]
[332793938,1721529039597,-500.0,0.00013698,2]
[332793939,1721529039607,-500.97080716,0.00013698,2]
[332793940,1721529039616,-500.0,0.00013698,2]
[332793941,1721529039625,-257.77649434,0.00013698,2]
[332793942,1721529039635,-500.0,0.00013698,2]
[332793943,1721529039645,-502.57095392,0.00013698,2]
[332793944,1721529039654,-343.29745174,0.00013698,2]
[332793945,1721529039664,-520.34,0.00013698,2]
[332793946,1721529039674,-500.0,0.00013698,2]
[332793947,1721529039684,-274.77327132,0.00013698,2]
[332793948,1721529039693,-483.36756744,0.00013698,2]
[332793949,1721529039703,-616.65,0.00013698,2]
[332793950,1721529039712,-500.0,0.00013698,2]
[332793951,1721529039722,-500.0,0.00013698,2]
[332793952,1721529039731,-500.0,0.00013698,2]
[332793954,1721529039741,-500.0,0.00013698,2]
[332793956,1721529039751,-500.0,0.00013698,2]
[332793958,1721529039761,-595.3,0.00013698,2]
[332793959,1721529039771,-500.0,0.00013698,2]
[332793961,1721529039780,-500.0,0.00013698,2]
[332793963,1721529039790,-1735.28,0.00013698,2]
[332793965,1721529039800,-500.0,0.00013698,2]
[332793966,1721529039809,-505.39149835,0.00013698,2]
[332793967,1721529039819,-513.23170006,0.00013698,2]
[332793968,1721529039828,-500.0,0.00013698,2]
[332793969,1721529039838,-500.0,0.00013698,2]
[332793970,1721529039848,-502.90682651,0.00013698,2]
[332793971,1721529039857,-522.55,0.00013698,2]
[332793972,1721529039868,-775.58,0.00013698,2]
[332793973,1721529039878,-557.62,0.00013698,2]
[332793974,1721529039887,-500.0,0.00013698,2]
[332793975,1721529039898,-1820.04,0.00013698,2]
[332793976,1721529039908,-500.0,0.00013698,2]
[332793977,1721529039918,-1470.32,0.00013698,2]
[332793978,1721529039929,-556.72,0.00013698,2]
[332793979,1721529039939,-500.0,0.00013698,2]
[332793980,1721529039950,-502.58801939,0.00013698,2]
[332793981,1721529039964,-171.40599026,0.00013698,2]
[332793982,1721529039976,-500.0,0.00013698,2]
[332793983,1721529039986,-500.0,0.00013698,2]
[332793984,1721529040000,-500.0,0.00013698,2]
[332793985,1721529040010,-2721.41,0.00013698,2]
[332793986,1721529040019,-500.0,0.00013698,2]
[332793987,1721529040031,-2747.63,0.00013698,2]
[332793988,1721529040042,-500.0,0.00013698,2]
[332793989,1721529040053,-500.0,0.00013698,2]
[332793991,1721529040063,-758.1,0.00013698,2]
[332793992,1721529040073,-500.0,0.00013698,2]
[332793994,1721529040083,-604.65,0.00013698,2]
[332793996,1721529040095,-553.17107908,0.00013698,2]
[332793998,1721529040105,-506.96922315,0.00013698,2]
[332793999,1721529040115,-1472.22,0.00013698,2]
[332794000,1721529040125,-640.6,0.00013698,2]
[332794001,1721529040134,-500.0,0.00013698,2]
[332794002,1721529040144,-500.0,0.00013698,2]
[332794003,1721529040153,-503.22469802,0.00013698,2]
[332794004,1721529040162,-271.74760283,0.00013698,2]
[332794005,1721529040172,-1970.53,0.00013698,2]
[332794006,1721529040184,-612.35,0.00013698,2]
[332794007,1721529040194,-1173.25,0.00013698,2]
[332794008,1721529040203,-500.0,0.00013698,2]
[332794009,1721529040213,-1098.68,0.00013698,2]
[332794010,1721529040223,-500.0,0.00013698,2]
[332794012,1721529040233,-500.81339104,0.00013698,2]
[332794014,1721529040243,-502.54817134,0.00013698,2]
[332794016,1721529040254,-500.0,0.00013698,2]
[332794018,1721529040263,-500.0,0.00013698,2]
[332794020,1721529040274,-500.0,0.00013698,2]
[332794022,1721529040284,-504.38908166,0.00013698,2]
[332794024,1721529040293,-521.70534703,0.00013698,2]
[332794025,1721529040303,-344.22504912,0.00013698,2]
[332794026,1721529040313,-500.0,0.00013698,2]
[332794027,1721529040325,-500.0,0.00013698,2]
[332794028,1721529040335,-500.0,0.00013698,2]
[332794029,1721529040344,-500.0,0.00013698,2]
[332794030,1721529040355,-500.0,0.00013698,2]
[332794031,1721529040367,-500.0,0.00013698,2]
[332794032,1721529040377,-1061.16,0.00013698,2]
[332794033,1721529040567,-500.0,0.00013698,2]
[332794034,1721529040587,-509.6950994,0.00013698,2]
[332794035,1721529040596,-500.0,0.00013698,2]
[332794036,1721529040606,-500.0,0.00013698,2]
[332794037,1721529040616,-500.0,0.00013698,2]
[332794038,1721529040626,-500.0,0.00013698,2]
[332794039,1721529040638,-500.0,0.00013698,2]
[332794040,1721529040649,-500.0,0.00013698,2]
[332794041,1721529040658,-536.66,0.00013698,2]
[332794042,1721529040668,-500.0,0.00013698,2]
[332794043,1721529040679,-500.0,0.00013698,2]
[332794044,1721529040690,-502.40678066,0.00013698,2]
[332794045,1721529040699,-509.41848931,0.00013698,2]
[332794046,1721529040709,-500.0,0.00013698,2]
[332794047,1721529040719,-500.0,0.00013698,2]
[332794048,1721529040728,-500.0,0.00013698,2]
[332794049,1721529040737,-500.0,0.00013698,2]
[332794050,1721529040747,-500.0,0.00013698,2]
[332794051,1721529040757,-797.09,0.00013698,2]
[332794052,1721529040766,-829.28,0.00013698,2]
[332794053,1721529040776,-778.34,0.00013698,2]
[332794054,1721529040786,-823.11,0.00013698,2]
[332794055,1721529040795,-500.0,0.00013698,2]
[332794056,1721529040804,-500.0,0.00013698,2]
[332794057,1721529040813,-500.0,0.00013698,2]
[332794058,1721529040824,-991.26,0.00013698,2]
[332794059,1721529040833,-500.0,0.00013698,2]
[332794060,1721529040843,-4000.84,0.00013698,2]
[332794061,1721529040853,-500.0,0.00013698,2]
[332794062,1721529040862,-500.0,0.00013698,2]
[332794063,1721529040872,-500.0,0.00013698,2]
[332794064,1721529040882,-500.0,0.00013698,2]
[332794065,1721529040892,-2000.0,0.00013698,2]
[332794066,1721529040903,-1424.21,0.00013698,2]
[332794067,1721529040914,-500.0,0.00013698,2]
[332794068,1721529040925,-666.63,0.00013698,2]
[332794069,1721529040935,-500.0,0.00013698,2]
[332794070,1721529040946,-589.09,0.00013698,2]
[332794071,1721529040961,-500.0,0.00013698,2]
[332794072,1721529040971,-500.0,0.00013698,2]
[332794073,1721529040981,-1736.03,0.00013698,2]
[332794074,1721529040991,-500.0,0.00013698,2]
[332794075,1721529041002,-500.0,0.00013698,2]
[332794076,1721529041012,-500.0,0.00013698,2]
[332794077,1721529041022,-500.0,0.00013698,2]
[332794078,1721529041032,-500.0,0.00013698,2]
[332794079,1721529041042,-500.0,0.00013698,2]
[332794080,1721529041051,-500.0,0.00013698,2]
[332794081,1721529041060,-592.72339652,0.00013698,2]
[332794082,1721529041070,-500.0,0.00013698,2]
[332794083,1721529041080,-500.0,0.00013698,2]
[332794084,1721529041089,-500.0,0.00013698,2]
[332794085,1721529041098,-500.0,0.00013698,2]
[332794086,1721529041108,-510.96,0.00013698,2]
[332794087,1721529041117,-500.0,0.00013698,2]
[332794088,1721529041126,-500.0,0.00013698,2]
[332794089,1721529041136,-457.76178401,0.00013698,2]
[332794090,1721529041145,-500.0,0.00013698,2]
[332794091,1721529041155,-500.0,0.00013698,2]
[332794092,1721529041164,-500.0,0.00013698,2]
[332794093,1721529041174,-500.0,0.00013698,2]
[332794094,1721529041184,-500.0,0.00013698,2]
[332794095,1721529041193,-519.39971363,0.00013698,2]
[332794096,1721529041203,-504.64998532,0.00013698,2]
[332794097,1721529041212,-554.49,0.00013698,2]
[332794098,1721529041221,-500.0,0.00013698,2]
[332794099,1721529041231,-500.0,0.00013698,2]
[332794100,1721529041240,-500.0,0.00013698,2]
[332794101,1721529041250,-500.0,0.00013698,2]
[332794102,1721529041260,-756.28,0.00013698,2]
[332794103,1721529041269,-500.0,0.00013698,2]
[332794104,1721529041279,-500.0,0.00013698,2]
[332794105,1721529041288,-500.0,0.00013698,2]
[332794106,1721529041297,-500.0,0.00013698,2]
[332794107,1721529041307,-500.0,0.00013698,2]
[332794108,1721529041316,-500.0,0.00013698,2]
[332794109,1721529041326,-577.04,0.00013698,2]
[332794110,1721529041335,-500.0,0.00013698,2]
[332794111,1721529041345,-500.0,0.00013698,2]
[332794112,1721529041355,-500.0,0.00013698,2]
[332794113,1721529041365,-500.0,0.00013698,2]
[332794114,1721529041374,-500.0,0.00013698,2]
[332794115,1721529041385,-185.12499059,0.00013698,2]
[332794116,1721529041395,-500.0,0.00013698,2]
[332794117,1721529041408,-500.0,0.00013698,2]
[332794118,1721529041417,-500.0,0.00013698,2]
[332794119,1721529041429,-500.0,0.00013698,2]
[332794120,1721529041439,-500.0,0.00013698,2]
[332794121,1721529041449,-500.0,0.00013698,2]
[332794122,1721529041459,-500.0,0.00013698,2]
[332794123,1721529041469,-513.64982428,0.00013698,2]
[332794124,1721529041480,-870.11,0.00013698,2]
[332794125,1721529041491,-500.0,0.00013698,2]
[332794126,1721529041503,-1223.88,0.00013698,2]
[332794127,1721529041512,-850.42,0.00013698,2]
[332794128,1721529041521,-524.72,0.00013698,2]
[332794129,1721529041531,-500.0,0.00013698,2]
[332794130,1721529041540,-500.0,0.00013698,2]
[332794131,1721529041549,-500.0,0.00013698,2]
[332794132,1721529041559,-500.0,0.00013698,2]
[332794133,1721529041568,-500.0,0.00013698,2]
[332794134,1721529041578,-500.0,0.00013698,2]
[332794135,1721529041589,-500.0,0.00013698,2]
[332794136,1721529041600,-500.0,0.00013698,2]
[332794137,1721529041611,-2621.65,0.00013698,2]
[332794138,1721529041621,-500.0,0.00013698,2]
[332794139,1721529041631,-500.0,0.00013698,2]
[332794140,1721529041642,-1056.28,0.00013698,2]
[332794141,1721529041652,-500.0,0.00013698,2]
[332794142,1721529041661,-500.0,0.00013698,2]
[332794143,1721529041671,-846.4,0.00013698,2]
[332794144,1721529041682,-1693.08,0.00013698,2]
[332794145,1721529041692,-502.14615165,0.00013698,2]
[332794146,1721529041701,-500.0,0.00013698,2]
[332794147,1721529041712,-844.25,0.00013698,2]
[332794148,1721529041721,-500.0,0.00013698,2]
[332794149,1721529041732,-500.0,0.00013698,2]
[332794150,1721529041741,-500.0,0.00013698,2]
[332794151,1721529041751,-708.72,0.00013698,2]
[332794152,1721529041761,-2691.93,0.00013698,2]
[332794153,1721529041771,-837.58,0.00013698,2]
[332794154,1721529041782,-500.0,0.00013698,2]
[332794155,1721529041793,-500.0,0.00013698,2]
[332794156,1721529041802,-500.0,0.00013698,2]
[332794157,1721529041812,-500.0,0.00013698,2]
[332794158,1721529041821,-500.0,0.00013698,2]
[332794159,1721529041830,-500.0,0.00013698,2]
[332794160,1721529041840,-500.0,0.00013698,2]
[332794161,1721529041849,-500.0,0.00013698,2]
[332794162,1721529041858,-500.0,0.00013698,2]
[332794163,1721529041867,-500.0,0.00013698,2]
[332794164,1721529041877,-500.0,0.00013698,2]
[332794165,1721529041886,-500.0,0.00013698,2]
[332794166,1721529041895,-500.0,0.00013698,2]
[332794167,1721529041904,-500.0,0.00013698,2]
[332794168,1721529041913,-500.0,0.00013698,2]
[332794169,1721529041922,-500.0,0.00013698,2]
[332794170,1721529041932,-550.42298283,0.00013698,2]
[332794171,1721529041941,-1895.88,0.00013698,2]
[332794172,1721529041951,-500.0,0.00013698,2]
[332794173,1721529041963,-500.0,0.00013698,2]
[332794174,1721529041972,-500.0,0.00013698,2]
[332794175,1721529041982,-500.0,0.00013698,2]
[332794176,1721529041992,-511.67133738,0.00013698,2]
[332794177,1721529042002,-551.81,0.00013698,2]
[332794178,1721529042012,-506.44277005,0.00013698,2]
[332794179,1721529042021,-500.0,0.00013698,2]
[332794180,1721529042030,-500.0,0.00013698,2]
[332794181,1721529042040,-513.04389013,0.00013698,2]
[332794182,1721529042050,-500.0,0.00013698,2]
[332794183,1721529042059,-500.0,0.00013698,2]
[332794184,1721529042069,-502.17138118,0.00013698,2]
[332794185,1721529042078,-500.0,0.00013698,2]
[332794186,1721529042087,-1624.67,0.00013698,2]
[332794187,1721529042096,-500.0,0.00013698,2]
[332794188,1721529042105,-500.0,0.00013698,2]
[332794189,1721529042114,-500.0,0.00013698,2]
[332794190,1721529042124,-628.06,0.00013698,2]
[332794191,1721529042133,-500.0,0.00013698,2]
[332794192,1721529042142,-500.0,0.00013698,2]
[332794193,1721529042151,-1714.81,0.00013698,2]
[332794194,1721529042160,-500.0,0.00013698,2]
[332794195,1721529042169,-500.0,0.00013698,2]
[332794196,1721529042179,-461.45377278,0.00013698,2]
[332794197,1721529042188,-617.37745255,0.00013698,2]
[332794198,1721529042198,-500.0,0.00013698,2]
[332794199,1721529042207,-500.0,0.00013698,2]
[332794200,1721529042216,-1247.71,0.00013698,2]
[332794201,1721529042226,-553.32,0.00013698,2]
[332794202,1721529042235,-500.0,0.00013698,2]
[332794203,1721529042245,-518.24520718,0.00013698,2]
[332794204,1721529042255,-668.01,0.00013698,2]
[332794205,1721529042264,-501.09062713,0.00013698,2]
[332794206,1721529042274,-519.63091483,0.00013698,2]
[332794207,1721529042283,-500.0,0.00013698,2]
[332794208,1721529042292,-500.0,0.00013698,2]
[332794209,1721529042301,-1554.0,0.00013698,2]
[332794210,1721529042311,-500.0,0.00013698,2]
[332794211,1721529042320,-702.48,0.00013698,2]
[332794212,1721529042329,-506.25486992,0.00013698,2]
[332794213,1721529042338,-646.26,0.00013698,2]
[332794214,1721529042348,-500.0,0.00013698,2]
[332794215,1721529042357,-500.0,0.00013698,2]
[332794216,1721529042366,-500.0,0.00013698,2]
[332794217,1721529042375,-504.84,0.00013698,2]
[332794218,1721529042384,-500.0,0.00013698,2]
[332794219,1721529042393,-500.0,0.00013698,2]
[332794220,1721529042402,-2341.64,0.00013698,2]
[332794221,1721529042411,-500.0,0.00013698,2]
[332794222,1721529042420,-500.0,0.00013698,2]
[332794223,1721529042430,-743.12,0.00013698,2]
[332794224,1721529042439,-500.0,0.00013698,2]
[332794225,1721529042448,-500.0,0.00013698,2]
[332794226,1721529042458,-500.0,0.00013698,2]
[332794227,1721529042467,-500.0,0.00013698,2]
[332794228,1721529042476,-500.0,0.00013698,2]
[332794229,1721529042486,-526.16960824,0.00013698,2]
[332794230,1721529042495,-1357.46,0.00013698,2]
[332794231,1721529042504,-3308.94,0.00013698,2]
[332794232,1721529042513,-500.0,0.00013698,2]
[332794233,1721529042522,-4094.45,0.00013698,2]
[332794234,1721529042531,-1097.27,0.00013698,2]
[332794235,1721529042540,-865.29,0.00013698,2]
[332794236,1721529042550,-2282.34,0.00013698,2]
[332794237,1721529042559,-500.0,0.00013698,2]
[332794238,1721529042568,-868.68,0.00013698,2]
[332794240,1721529042578,-500.0,0.00013698,2]
[332794242,1721529042587,-989.42,0.00013698,2]
[332794244,1721529042596,-1836.33,0.00013698,2]
[332794246,1721529042607,-500.0,0.00013698,2]
[332794248,1721529042616,-500.0,0.00013698,2]
[332794250,1721529042625,-438.00650596,0.00013698,2]
[332794252,1721529042634,-500.0,0.00013698,2]
[332794254,1721529042643,-1055.7,0.00013698,2]
[332794256,1721529042653,-500.0,0.00013698,2]
[332794258,1721529042662,-500.0,0.00013698,2]
[332794260,1721529042671,-2021.04,0.00013698,2]
[332794263,1721529042681,-500.0,0.00013698,2]
[332794267,1721529042690,-500.0,0.00013698,2]
[332794270,1721529042700,-500.0,0.00013698,2]
[332794273,1721529042709,-500.0,0.00013698,2]
[332794276,1721529042718,-500.0,0.00013698,2]
[332794279,1721529042727,-572.28,0.00013698,2]
[332794282,1721529042737,-555.0,0.00013698,2]
[332794285,1721529042746,-500.0,0.00013698,2]
[332794288,1721529042755,-2258.59,0.00013698,2]
[332794291,1721529042764,-500.0,0.00013698,2]
[332794294,1721529042773,-500.0,0.00013698,2]
[332794297,1721529042782,-599.7,0.00013698,2]
[332794300,1721529042791,-504.46428852,0.00013698,2]
[332794302,1721529042801,-500.0,0.00013698,2]
[332794305,1721529042810,-500.0,0.00013698,2]
[332794308,1721529042819,-501.5162643,0.00013698,2]
[332794311,1721529042828,-5595.42,0.00013698,2]
[332794314,1721529042838,-500.0,0.00013698,2]
[332794318,1721529042847,-503.64244037,0.00013698,2]
[332794321,1721529042857,-500.0,0.00013698,2]
[332794324,1721529042866,-8613.37,0.00013698,2]
[332794327,1721529042875,-5252.85,0.00013698,2]
[332794330,1721529042885,-500.0,0.00013698,2]
[332794333,1721529042894,-500.0,0.00013698,2]
[332794336,1721529042903,-501.1334757,0.00013698,2]
[332794339,1721529042912,-500.0,0.00013698,2]
[332794343,1721529042921,-540.15,0.00013698,2]
[332794345,1721529042931,-500.0,0.00013698,2]
[332794347,1721529042940,-581.33,0.00013698,2]
[332794350,1721529042951,-2599.06,0.00013698,2]
[332794353,1721529042964,-1699.65,0.00013698,2]
[332794356,1721529042973,-500.0,0.00013698,2]
[332794359,1721529042983,-500.0,0.00013698,2]
[332794362,1721529042993,-500.0,0.00013698,2]
[332794365,1721529043003,-500.0,0.00013698,2]
[332794368,1721529043012,-17991.42,0.00013698,2]
[332794370,1721529043021,-500.0,0.00013698,2]
[332794372,1721529043031,-3010.76,0.00013698,2]
[332794374,1721529043041,-500.42433486,0.00013698,2]
[332794376,1721529043050,-500.0,0.00013698,2]
[332794378,1721529043059,-1468.73,0.00013698,2]
[332794380,1721529043069,-1031.11,0.00013698,2]
[332794382,1721529043079,-7865.03,0.00013698,2]
[332794384,1721529043088,-500.0,0.00013698,2]
[332794386,1721529043097,-500.0,0.00013698,2]
[332794389,1721529043107,-500.0,0.00013698,2]
[332794391,1721529043116,-2258.16,0.00013698,2]
[332794394,1721529043126,-500.0,0.00013698,2]
[332794398,1721529043135,-500.0,0.00013698,2]
[332794400,1721529043145,-1026.86,0.00013698,2]
[332794403,1721529043154,-500.0,0.00013698,2]
[332794406,1721529043163,-3110.04,0.00013698,2]
[332794409,1721529043173,-500.0,0.00013698,2]
[332794411,1721529043183,-501.5293362,0.00013698,2]
[332794414,1721529043196,-910.34,0.00013698,2]
[332794415,1721529043206,-500.0,0.00013698,2]
[332794419,1721529043216,-500.0,0.00013698,2]
[332794422,1721529043227,-500.0,0.00013698,2]
[332794424,1721529043238,-500.0,0.00013698,2]
[332794425,1721529043247,-500.0,0.00013698,2]
[332794427,1721529043257,-500.0,0.00013698,2]
[332794429,1721529043267,-500.0,0.00013698,2]
[332794432,1721529043277,-500.0,0.00013698,2]
[332794434,1721529043289,-568.63,0.00013698,2]
[332794436,1721529043299,-500.0,0.00013698,2]
[332794438,1721529043309,-500.0,0.00013698,2]
[332794440,1721529043319,-500.0,0.00013698,2]
[332794442,1721529043329,-11449.06,0.00013698,2]
[332794444,1721529043338,-1035.18,0.00013698,2]
[332794446,1721529043348,-3331.76,0.00013698,2]
[332794448,1721529043357,-500.0,0.00013698,2]
[332794450,1721529043367,-500.0,0.00013698,2]
[332794452,1721529043376,-2055.64,0.00013698,2]
[332794454,1721529043386,-669.39,0.00013698,2]
[332794456,1721529043395,-517.40359857,0.00013698,2]
[332794457,1721529043405,-2606.52,0.00013698,2]
[332794458,1721529043414,-1297.05,0.00013698,2]
[332794459,1721529043423,-500.0,0.00013698,2]
[332794461,1721529043435,-3661.62,0.00013698,2]
[332794463,1721529043444,-501.43167891,0.00013698,2]
[332794465,1721529043456,-480.92618224,0.00013698,2]
[332794467,1721529043465,-502.31,0.00013698,2]
[332794469,1721529043474,-500.0,0.00013698,2]
[332794471,1721529043483,-1989.18,0.00013698,2]
[332794473,1721529043492,-500.0,0.00013698,2]
[332794475,1721529043502,-591.21,0.00013698,2]
[332794477,1721529043511,-581.37,0.00013698,2]
[332794479,1721529043521,-1783.23,0.00013698,2]
[332794481,1721529043531,-1053.43,0.00013698,2]
[332794483,1721529043540,-500.0,0.00013698,2]
[332794484,1721529043550,-508.05205072,0.00013698,2]
[332794486,1721529043559,-4772.42,0.00013698,2]
[332794487,1721529043568,-500.0,0.00013698,2]
[332794488,1721529043577,-500.0,0.00013698,2]
[332794489,1721529043587,-555.07,0.00013698,2]
[332794490,1721529043596,-4979.59,0.00013698,2]
[332794491,1721529043605,-500.0,0.00013698,2]
[332794492,1721529043615,-500.0,0.00013698,2]
[332794493,1721529043624,-500.0,0.00013698,2]
[332794494,1721529043633,-1283.11,0.00013698,2]
[332794495,1721529043642,-500.0,0.00013698,2]
[332794496,1721529043651,-500.0,0.00013698,2]
[332794497,1721529043660,-500.0,0.00013698,2]
[332794498,1721529043670,-846.94,0.00013698,2]
[332794499,1721529043680,-500.0,0.00013698,2]
[332794500,1721529043689,-640.12,0.00013698,2]
[332794501,1721529043699,-2024.97,0.00013698,2]
[332794502,1721529043708,-577.43,0.00013698,2]
[332794503,1721529043717,-1552.64,0.00013698,2]
[332794504,1721529043727,-500.0,0.00013698,2]
[332794505,1721529043736,-674.28,0.00013698,2]
[332794506,1721529043746,-1310.0,0.00013698,2]
[332794507,1721529043755,-501.3188156,0.00013698,2]
[332794508,1721529043763,-500.0,0.00013698,2]
[332794509,1721529043773,-500.0,0.00013698,2]
[332794510,1721529043782,-936.75,0.00013698,2]
[332794511,1721529043791,-500.0,0.00013698,2]
[332794512,1721529043800,-3025.36,0.00013698,2]
[332794513,1721529043809,-541.1,0.00013698,2]
[332794514,1721529043819,-500.0,0.00013698,2]
[332794515,1721529043828,-847.46,0.00013698,2]
[332794516,1721529043837,-500.0,0.00013698,2]
[332794517,1721529043846,-500.0,0.00013698,2]
[332794518,1721529043855,-500.0,0.00013698,2]
[332794519,1721529043865,-500.0,0.00013698,2]